Cogmind - Beta 14 @@@ ROGUE MODE // 2024.08.12 @ 22:43:38 Player: Nell Result: Destroyed by S-27 Virus with Autogun Performance ------------- Evolutions (5) 2500 Regions Visited (8) 1600 Robots Destroyed (45) 225 Value Destroyed (1345) 1345 Prototype IDs (4) 80 Alien Tech Used (0) 0 Bonus (557) 557 TOTAL SCORE: 6307 Bonus ------- High Alert Combat Kills 57 Entered DSFs 500 Cogmind --------- Core Integrity 0/1000 Matter 159/300 Energy 84/100 System Corruption 5% Temperature Cool (0) Movement Core (50) Location -5/Factory Parts ------- > --- POWER (2) -------- (None) > --- PROPULSION (4) --- (None) > --- UTILITY (9) ------ (None) > --- WEAPON (2) ------- (None) > --- INVENTORY (5) ---- (None) Peak State ------------ > --- POWER ------------ Light Deuterium Engine Light Fission Core > --- PROPULSION ------- Xenon Bombardment Thruster Nuclear Pulse Thruster Nuclear Pulse Thruster Field Propulsion Drive > --- UTILITY ---------- Advanced Heat Sink Small Storage Unit Advanced Weight Redist. System Advanced Targeting Computer Advanced ECM Suite Improved Propulsion Shielding Hacking Suite > --- WEAPON ----------- Disruptor Cannon Plasma Sword > --- INVENTORY -------- Xenon Bombardment Thruster Xenon Bombardment Thruster Xenon Bombardment Thruster Xenon Bombardment Thruster Force Field Heavy Machine Gun Hypervelocity Coil Gun [Rating: 66] Favorites ----------- Power Light Deuterium Engine Engine Light Deuterium Engine Power Core Light Fission Core Reactor Light Antimatter Reactor Propulsion Xenon Bombardment Thruster Treads Armored Medium Treads Leg Aluminum Leg Flight Unit Xenon Bombardment Thruster Utility Small Storage Unit Device Advanced Weight Redist. System Storage Small Storage Unit Processor Advanced Targeting Computer Hackware Hacking Suite Protection Improved Propulsion Shielding Weapon Light Assault Rifle Energy Gun Medium Laser Energy Cannon Disruptor Cannon Ballistic Gun Light Assault Rifle Ballistic Cannon Gauss Cannon Launcher Heavy Rocket Launcher Slashing Weapon Scythe Build | -11 -10 -10 -9 -8 -7 -7 -6 -5 ------- Run | Yrd Mat Min Mat Mat Fac DSF Fac Fac Slots Evolved 10 | . . . 2 2 2 . 2 2 Power 1 | . . . . . 1 . . . Propulsion 2 | . . . 1 1 . . . . Utility 7 | . . . 1 1 1 . 2 2 Weapon . | . . . . . . . . . Parts Attached 101 | 7 3 11 3 17 4 7 17 32 Power 15 | 1 1 2 . 4 1 . 2 4 Engine 9 | 1 1 2 . 4 . . . 1 Core 5 | . . . . . 1 . 2 2 Reactor 1 | . . . . . . . . 1 Propulsion 24 | 2 1 4 2 3 . 4 2 6 Treads 2 | . . . . . . . . 2 Leg 6 | 2 1 2 1 . . . . . Wheel . | . . . . . . . . . Hover . | . . . . . . . . . Flight 16 | . . 2 1 3 . 4 2 4 Utility 29 | 2 . 3 1 5 3 3 4 8 Device 17 | 1 . 3 1 2 1 2 3 4 Storage 1 | 1 . . . . . . . . Processor 1 | . . . . 1 . . . . Hackware 1 | . . . . 1 . . . . Protection 9 | . . . . 1 2 1 1 4 Artifact . | . . . . . . . . . Weapon 33 | 2 1 2 . 5 . . 9 14 Energy Gun 2 | 1 . . . . . . 1 . Energy Cannon 4 | . . . . . . . 1 3 Ballistic Gun 11 | 1 1 2 . 2 . . 1 4 Ballistic Cannon 5 | . . . . 1 . . 2 2 Launcher 5 | . . . . 2 . . 1 2 Special Weapon . | . . . . . . . . . Impact Weapon . | . . . . . . . . . Slashing Weapon 6 | . . . . . . . 3 3 Piercing Weapon . | . . . . . . . . . Special Melee Weapon . | . . . . . . . . . Unidentified Prototypes 4 | . . 1 . 1 . . . 2 Parts Lost 37 | . . 1 . 5 . 2 . 29 Power 6 | . . . . 1 . 1 . 4 Propulsion 10 | . . . . 1 . . . 9 Utility 12 | . . 1 . 2 . . . 9 Weapon 9 | . . . . 1 . 1 . 7 Highest Loss Streak 14 | . . 1 . 3 . 2 . 14 To Critical Strikes . | . . . . . . . . . Average Slot Usage (%) 88 | . 100 100 99 98 100 88 98 71 Engine 6 | . 14 14 11 9 7 7 1 1 Core 3 | . . . . . 7 3 11 4 Treads 1 | . . . . . . . . 2 Leg 6 | . 28 20 9 . . . . . Flight 18 | . . 8 22 36 30 30 26 15 Device 14 | . 14 14 22 6 9 7 19 14 Storage 7 | . 14 14 11 9 7 7 6 2 Processor 3 | . . . . 6 7 7 6 2 Hackware 4 | . . . . 9 7 7 6 4 Protection 4 | . . . . 4 5 7 5 7 Ballistic Gun 12 | . 27 28 22 13 15 7 2 3 Slashing Weapon 1 | . . . . . . . 5 2 Peak Build Rating 66 | 7 7 24 28 36 36 43 59 66 Average Rating 34 | 5 7 12 26 29 34 37 54 49 On Entrance 24 | . 7 7 17 28 30 36 34 58 Naked Turns 9 | . . . . . . . . 9 Heaviest Build 45 | 12 12 15 15 18 23 23 36 45 Greatest Support 54 | 20 20 20 20 25 25 33 33 54 Greatest Overweight (x) 4 | 3 . 2 . 1 . . 1 4 Average Overweight (x) . | . . . . . . . . . Largest Inventory Capacity 8 | 8 8 8 8 8 8 8 8 8 Average Capacity 7 | 7 8 8 8 8 8 8 8 6 Most Carried 8 | 4 8 8 8 8 8 8 8 8 Average Carried 6 | 2 6 7 7 7 7 7 7 5 Final Capacity 8 | 8 8 8 8 8 8 8 8 5 Final Carried 8 | 3 8 8 8 8 8 8 8 . Class Distribution -------------------- 55% | Sprinter 44% | Mutant Dominant Class ---------------- Mutant | -10/Materials Mutant | -10/Mines Mutant | -9/Materials Sprinter | -8/Materials Sprinter | -7/Factory Sprinter | -7/DSF Sprinter | -6/Factory Sprinter | -5/Factory Resources | -11 -10 -10 -9 -8 -7 -7 -6 -5 ----------- Run | Yrd Mat Min Mat Mat Fac DSF Fac Fac Matter Collected 1534 | 267 80 74 78 339 54 . 130 512 Remotely . | . . . . . . . . . Salvage Created 1348 | 32 255 36 78 223 . . 28 696 Parts 86 | 4 21 2 5 16 . . 3 35 Haulers Intercepted 4 | . . . 2 . . . . 2 Recyclers Shooed 1 | . . 1 . . . . . . Parts Field Recycled . | . . . . . . . . . Retrieved Matter . | . . . . . . . . . Parts Self-Destructed . | . . . . . . . . . Prevented . | . . . . . . . . . Kills | -11 -10 -10 -9 -8 -7 -7 -6 -5 ------- Run | Yrd Mat Min Mat Mat Fac DSF Fac Fac Combat Hostiles Destroyed 30 | . 8 2 . 9 . . . 11 Melee 2 | . . . . . . . . 2 Guns 19 | . 8 2 . 6 . . . 3 Cannons 2 | . . . . . . . . 2 AOE 7 | . . . . 3 . . . 4 Classes Destroyed 10 | 1 2 . 2 3 . . 1 1 Worker 4 | . . . . . . . 1 3 Tunneler 4 | 2 . . . . . . . 2 Hauler 4 | . . . 2 . . . . 2 Mechanic 1 | . . . . . . . . 1 Operator 2 | . . . 1 1 . . . . Swarmer 10 | . 2 2 . 3 . . . 3 Grunt 13 | . 6 . . 2 . . . 5 Duelist 1 | . . . . 1 . . . . Sentry 2 | . . . . 1 . . . 1 Hunter 4 | . . . . 2 . . . 2 Best Kill Streak 6 | 1 6 2 1 6 . . 1 6 Combat Bots Only 6 | . 6 2 . 6 . . . 4 Max Kills in Single Turn 3 | 1 1 1 1 3 . . 1 3 Gunslinging . | . . . . . . . . . Exploded 3 | . . . . 3 . . . 2 Melee 1 | . . . . . . . . 1 Uniques/NPCs Destroyed . | . . . . . . . . . Combat | -11 -10 -10 -9 -8 -7 -7 -6 -5 -------- Run | Yrd Mat Min Mat Mat Fac DSF Fac Fac Hostile Shots Fired 492 | . 32 41 8 73 . 6 40 292 Missed 156 | . 10 11 3 20 . 4 29 79 Damage Taken 5206 | . 212 237 68 717 . 117 187 3668 Core 1354 | . 56 77 29 133 . 23 35 1001 Absorbed by Shields 44 | . . . . . . . . 44 Redirected to Shielding 232 | . . . . 86 . 10 21 115 Regen/Repaired (Parts) 96 | . . . . . . . 96 . Core Remaining (%) 84 | 100 . 46 92 75 . 96 95 . Volleys Fired 109 | 3 28 14 11 16 . . 2 35 Largest 2 | 2 2 2 2 2 . . 1 2 Hottest 116 | 70 40 40 45 61 . . 39 116 Shots Fired 200 | 6 56 28 22 32 . . 2 54 Gun 169 | 6 56 28 22 30 . . 1 26 Cannon 17 | . . . . . . . . 17 Launcher 14 | . . . . 2 . . 1 11 Special . | . . . . . . . . . Kinetic 177 | 3 56 28 22 30 . . 1 37 Thermal 3 | 3 . . . . . . . . Explosive 14 | . . . . 2 . . 1 11 Electromagnetic 6 | . . . . . . . . 6 Robot Hit Streak 6 | 3 5 2 6 5 . . . 6 Robot Miss Streak 5 | 1 5 3 4 4 . . 1 4 Penetration Max . | . . . . . . . . . Secondary Targets 2 | . . 1 . 1 . . . . Max Gunslinging Chain 1 | . . 1 . 1 . . . . Shots Hit Robots 126 | 4 29 9 15 19 . . 2 48 Core Hits 87 | 2 18 4 5 16 . . 4 38 Critical Kills 1 | . . . . . . . . 1 Critical Parts Destroyed 6 | . . 2 . 1 . . . 3 Critical Strikes 8 | . . 2 . 1 . . . 5 Destroy 7 | . . 2 . 1 . . . 4 Sever 1 | . . . . . . . . 1 Melee Attacks 29 | . . . . . . . 5 24 Impact . | . . . . . . . . . Slashing 29 | . . . . . . . 5 24 Piercing . | . . . . . . . . . Sneak Attacks 5 | . . . . . . . 1 4 Combat Hostiles . | . . . . . . . . . Follow-up Attacks . | . . . . . . . . . Damage Inflicted 3766 | 65 253 69 240 802 . . 170 2167 Guns 1106 | 56 243 69 240 317 . . . 181 Cannons 193 | . . . . . . . . 193 Explosions 1548 | . . . . 485 . . 63 1000 Melee 899 | . . . . . . . 107 792 Ramming 20 | 9 10 . . . . . . 1 Kinetic 1172 | 18 243 69 240 317 . . . 285 Thermal 413 | 38 . . . 375 . . . . Explosive 1075 | . . . . 110 . . 63 902 Electromagnetic 187 | . . . . . . . . 187 Impact . | . . . . . . . . . Slashing 899 | . . . . . . . 107 792 Piercing . | . . . . . . . . . Highest Corruption 5 | . . . . . . . . 5 Average Corruption 4 | . . . . . . . . 4 Corruption Purged . | . . . . . . . . . Corruption Blocked . | . . . . . . . . . Effects 12 | . . . . . . . . 12 Message Errors 3 | . . . . . . . . 3 Matter Fused 1 | . . . . . . . . 1 Energy Discharges 2 | . . . . . . . . 2 Parts Rejected 1 | . . . . . . . . 1 Data Loss (major) 2 | . . . . . . . . 2 Misfires 2 | . . . . . . . . 2 Weapon Failures 1 | . . . . . . . . 1 Overload Shots . | . . . . . . . . . Overflow Damage 85 | . . . . 50 . . 31 4 Projectiles . | . . . . . . . . . Explosions 50 | . . . . 50 . . . . Melee 35 | . . . . . . . 31 4 Knockbacks 1 | . . . . . . . . 1 Impact . | . . . . . . . . . Kinetic 1 | . . . . . . . . 1 Secondary . | . . . . . . . . . Self-Inflicted Damage 108 | . . . . 10 . . 11 87 Shots 4 | . . . . 1 . . 1 2 Rammed 1 | . . . . . . . . 1 Targets Rammed 8 | 2 4 1 . . . . . 1 Kicked 7 | 2 4 1 . . . . . . Crushed . | . . . . . . . . . Highest Temperature 355 | 40 6 . 19 17 . . 14 355 Average Temperature 37 | 20 6 . 6 5 . . 7 76 Received Heat Transfer 778 | . 78 . 45 45 . . 57 553 Siege Activations . | . . . . . . . . . Robots Corrupted . | . . . . . . . . . Combat Hostiles . | . . . . . . . . . Parts Fried . | . . . . . . . . . Impact Corruptions . | . . . . . . . . . Robots Melted . | . . . . . . . . . Combat Hostiles . | . . . . . . . . . Parts Melted 1 | . . . . 1 . . . . Heat Transferred 311 | 111 . . . 200 . . . . Parts Sabotaged . | . . . . . . . . . Parts Stolen . | . . . . . . . . . Parts Stripped . | . . . . . . . . . Power Chain Reactions 1 | . . . . . . . . 1 Alert | -11 -10 -10 -9 -8 -7 -7 -6 -5 ------- Run | Yrd Mat Min Mat Mat Fac DSF Fac Fac Peak Influence 508 | 10 276 212 160 415 192 134 316 508 Initial 188 | . 6 107 82 67 188 134 67 159 Average 194 | 4 90 157 120 258 188 125 157 293 Maximum Alert Level 2 | . 1 1 . 2 . . 1 2 Low Security (%) 52 | 100 80 94 100 25 100 100 58 11 Level 1 40 | . 19 5 . 49 . . 41 75 Level 2 6 | . . . . 25 . . . 12 Level 3 . | . . . . . . . . . Level 4 . | . . . . . . . . . Level 5 . | . . . . . . . . . High Security . | . . . . . . . . . Max Security . | . . . . . . . . . Squads Dispatched 11 | . 2 1 1 . . 1 4 2 Investigation 4 | . . 1 1 . . . 2 . Extermination . | . . . . . . . . . Reinforcement 7 | . 2 . . . . 1 2 2 Assault . | . . . . . . . . . Garrison . | . . . . . . . . . Intercept . | . . . . . . . . . Searches Triggered 1 | . . . . . . . . 1 Construction Impeded 2 | . . . . . . . 1 1 Haulers Reinforced 1 | . . . . . . . . 1 Active Scanning Responses . | . . . . . . . . . Cargo Convoy Interrupts . | . . . . . . . . . Stealth | -11 -10 -10 -9 -8 -7 -7 -6 -5 --------- Run | Yrd Mat Min Mat Mat Fac DSF Fac Fac Distress Signals 7 | . 5 . . 1 . . . 1 Communications Jammed . | . . . . . . . . . Distress Signals . | . . . . . . . . . Times Spotted 105 | . 18 7 3 13 . 5 19 40 Peak Tracking Total 15 | . 7 3 3 6 . 5 9 15 Tactical Retreats 23 | . 5 4 1 . . 1 4 8 Traps | -11 -10 -10 -9 -8 -7 -7 -6 -5 ------- Run | Yrd Mat Min Mat Mat Fac DSF Fac Fac Traps Triggered 3 | . . . . . . . 2 1 Indirectly . | . . . . . . . . . Trap Hack Attempts . | . . . . . . . . . Triggered . | . . . . . . . . . Disarmed . | . . . . . . . . . Reprogrammed . | . . . . . . . . . Reused . | . . . . . . . . . Traps Extracted . | . . . . . . . . . Installed . | . . . . . . . . . Triggered 1 | . . . . . . . 1 . Machines | -11 -10 -10 -9 -8 -7 -7 -6 -5 ---------- Run | Yrd Mat Min Mat Mat Fac DSF Fac Fac Machines Disabled 12 | . . . . 3 . . 2 7 Max in Single Turn 5 | . . . . 3 . . 1 5 Garrison Access 3 | . . . . 1 . . 1 1 Machines Repaired . | . . . . . . . . . Machines Dismantled . | . . . . . . . . . Machines Sabotaged . | . . . . . . . . . Overloaded Fab Kills . | . . . . . . . . . Hacking | -11 -10 -10 -9 -8 -7 -7 -6 -5 --------- Run | Yrd Mat Min Mat Mat Fac DSF Fac Fac Machines Accessed 28 | . 2 1 5 5 1 . 9 5 Terminals 19 | . 2 . 4 3 1 . 5 4 Fabricators 1 | . . . . . . . 1 . Repair Stations 1 | . . . . . . . 1 . Recycling Units 2 | . . . 1 . . . 1 . Scanalyzers 1 | . . . . 1 . . . . Garrison Access 3 | . . . . 1 . . 1 1 Total Hacks 60 | . 2 1 11 13 1 . 20 12 Successful 23 | . . 1 3 6 1 . 9 3 Failed 37 | . 2 . 8 7 . . 11 9 Catastrophic 11 | . 1 . 3 3 . . 3 1 Database Lockouts . | . . . . . . . . . Manual 20 | . 2 . 3 5 . . 5 5 Terminals 40 | . 2 . 8 6 1 . 12 11 Fabricators 3 | . . . . . . . 3 . Repair Stations 3 | . . . . . . . 3 . Recycling Units 4 | . . . 3 . . . 1 . Scanalyzers 4 | . . . . 4 . . . . Garrison Access 5 | . . . . 3 . . 1 1 Terminal Hacks 10 | . . 1 2 1 1 . 3 2 Record 1 | . . . . . . . . 1 Part Schematic 1 | . . . . . . . 1 . Open Door 1 | . . 1 . . . . . . Open DSF 1 | . . . . . 1 . . . Level Access Points 1 | . . . . . . . 1 . Locate Traps 4 | . . . 1 1 . . 1 1 Zone Layout 1 | . . . 1 . . . . . Fabricator Hacks 2 | . . . . . . . 2 . Load Schematic 1 | . . . . . . . 1 . Build 1 | . . . . . . . 1 . Repair Station Hacks 2 | . . . . . . . 2 . Scan Component 1 | . . . . . . . 1 . Repair 1 | . . . . . . . 1 . Recycling Unit Hacks 2 | . . . 1 . . . 1 . Retrieve Components 2 | . . . 1 . . . 1 . Scanalyzer 4 | . . . . 4 . . . . Insert Component 2 | . . . . 2 . . . . Analyze 2 | . . . . 2 . . . . Garrison Access Hacks 3 | . . . . 1 . . 1 1 Seal Access 3 | . . . . 1 . . 1 1 Unauthorized Hacks . | . . . . . . . . . Terminals . | . . . . . . . . . Fabricators . | . . . . . . . . . Repair Stations . | . . . . . . . . . Recycling Units . | . . . . . . . . . Scanalyzers . | . . . . . . . . . Garrison Access . | . . . . . . . . . Data Cores Recovered 1 | . . . 1 . . . . . Used 1 | . . . 1 . . . . . Hacking Detections 23 | . 2 . 5 4 1 . 8 3 Full Trace Events 3 | . . . 1 1 . . 1 . Feedback Events . | . . . . . . . . . Feedback Blocked . | . . . . . . . . . Robot Schematics Acquired . | . . . . . . . . . Robots Built . | . . . . . . . . . Authchips . | . . . . . . . . . Time . | . . . . . . . . . Total Robot Build Rating . | . . . . . . . . . Part Schematics Acquired 3 | . . . . 2 . . 1 . Parts Built 2 | . . . . . . . 2 . Authchips . | . . . . . . . . . Time 62 | . . . . . . . 62 . Total Part Build Rating 4 | . . . . . . . 4 . Parts Repaired 1 | . . . . . . . 1 . Time 19 | . . . . . . . 19 . Parts Recycled . | . . . . . . . . . Recycled Matter . | . . . . . . . . . Retrieved Matter . | . . . . . . . . . Retrieved Components 3 | . . . 1 . . . 2 . Parts Scanalyzed 2 | . . . . 2 . . . . Part Schematics Acquired 2 | . . . . 2 . . . . Parts Damaged . | . . . . . . . . . Bothacking | -11 -10 -10 -9 -8 -7 -7 -6 -5 ------------ Run | Yrd Mat Min Mat Mat Fac DSF Fac Fac Used RIF Installer . | . . . . . . . . . Robots Hacked . | . . . . . . . . . Non-combat . | . . . . . . . . . Combat . | . . . . . . . . . Robot Hacks Applied . | . . . . . . . . . Relay Couplers Released . | . . . . . . . . . Fabnet Peak Effective % . | . . . . . . . . . Robots Rewired . | . . . . . . . . . Allies Hacked . | . . . . . . . . . Hacks Repelled . | . . . . . . . . . Allies | -11 -10 -10 -9 -8 -7 -7 -6 -5 -------- Run | Yrd Mat Min Mat Mat Fac DSF Fac Fac Total Allies . | . . . . . . . . . Largest Group . | . . . . . . . . . Highest-Rated Group . | . . . . . . . . . Highest-Rated Ally . | . . . . . . . . . Total Orders . | . . . . . . . . . Ally Attacks . | . . . . . . . . . Total Damage . | . . . . . . . . . Kills . | . . . . . . . . . Allies Corrupted . | . . . . . . . . . Allies Melted . | . . . . . . . . . Intel | -11 -10 -10 -9 -8 -7 -7 -6 -5 ------- Run | Yrd Mat Min Mat Mat Fac DSF Fac Fac Robot Analysis Total . | . . . . . . . . . Derelict Logs Recovered 1 | . . 1 . . . . . . Drone Launches . | . . . . . . . . . Drone Recoveries . | . . . . . . . . . Exploration | -11 -10 -10 -9 -8 -7 -7 -6 -5 ------------- Run | Yrd Mat Min Mat Mat Fac DSF Fac Fac Turns Passed 1911 | 103 224 211 138 203 44 37 314 637 Spaces Moved 2917 | 63 112 269 234 377 136 85 770 871 Core 31 | 12 . . . . . . . 19 Treads 62 | . . . . . . . . 62 Legs 240 | 51 112 77 . . . . . . Wheels . | . . . . . . . . . Hover . | . . . . . . . . . Flight 2584 | . . 192 234 377 136 85 770 790 Fastest Speed 26 | 50 120 32 29 26 26 26 31 31 Average Speed 42 | 125 120 57 40 26 26 30 31 43 Slowest Speed 360 | 200 120 205 42 96 26 31 111 360 Overloaded Moves . | . . . . . . . . . Propulsion Burnouts . | . . . . . . . . . Robots Hopped 15 | . . . 3 1 . . 4 7 Cave-ins Triggered . | . . . . . . . . . Exploration Rate (%) 27 | 5 22 42 22 40 4 78 21 17 Regions Visited 8 Branch Regions 1 Pre-discovered Areas . | . . . . . . . . . Known Exits Taken 2 | . . . . . 1 . 1 . Unknown Exits Taken 5 | 1 1 1 1 1 . . . . Scrap Searched . | . . . . . . . . . Spaces Dug 26 | . . . . . . . 12 14 Terrain Destroyed 127 | . . . . 49 . . 12 66 Melee . | . . . . . . . . . Projectile 5 | . . . . . . . . 5 AOE 122 | . . . . 49 . . 12 61 Terrain Rammed . | . . . . . . . . . Walls Destroyed . | . . . . . . . . . Machines Disabled . | . . . . . . . . . Actions | -11 -10 -10 -9 -8 -7 -7 -6 -5 --------- Run | Yrd Mat Min Mat Mat Fac DSF Fac Fac Total 3336 | 78 157 299 254 450 142 98 828 1030 Wait 109 | . . . . 22 . . 24 63 Move 2881 | 63 111 268 227 374 135 84 762 857 Hop 14 | . . . 3 1 . . 3 7 Pick Up 46 | 4 7 2 6 11 2 2 7 5 Fast Attach 22 | 6 . . . 1 1 . 4 10 Attach 28 | 1 . 1 2 7 1 . 3 13 Detach 3 | . . . . 1 . . . 2 Swap 51 | . 3 10 1 9 2 7 10 9 Drop 37 | . 4 3 4 8 1 5 8 4 Fire 109 | 3 28 14 11 16 . . 2 35 Melee 29 | . . . . . . . 5 24 Ram . | . . . . . . . . . Kick 6 | 1 4 1 . . . . . . Crush 1 | . . . . . . . . 1 Escape Stasis . | . . . . . . . . . Rewire . | . . . . . . . . . Trap . | . . . . . . . . . Miscellaneous . | . . . . . . . . . Route ------- -11/Scrapyard -10/Materials (discovered 2 exits: *Min x2) -10/Mines -9/Materials (discovered 3 exits: *Mat / Min / Sto) -8/Materials -7/Factory -7/DSF -6/Factory (discovered 4 exits: *Fac x4) -5/Factory History --------- Turn | Location | Event 19 | -11/Scrapyard | Discovered new exit (range 16) 104 | -11/Scrapyard | Entered Materials 316 | -10/Materials | Build established: Mutant 322 | -10/Materials | Discovered new exit (range 6) 323 | -10/Materials | Discovered new exit (range 15) 328 | -10/Materials | Entered Mines 377 | -10/Mines | Core integrity fell below 50% 425 | -10/Mines | Found a damaged Exp. Sensor Array with a note attached 427 | -10/Mines | Found Prototype Device 428 | -10/Mines | Identified Exp. Sensor Array 446 | -10/Mines | Learned location of 2 exits from Materials 458 | -10/Mines | Met a Derelict shopkeep closing up shop 518 | -10/Mines | Discovered new exit (range 9) 539 | -10/Mines | Entered Materials 539 | -9/Materials | Evolved 2 slots: Propulsion x1, Utility x1 540 | -9/Materials | Identified exit to Mines 540 | -9/Materials | Identified exit to Storage 654 | -9/Materials | Discovered new exit (range 16) 677 | -9/Materials | Entered another Materials area 677 | -8/Materials | Evolved 2 slots: Propulsion x1, Utility x1 849 | -8/Materials | Lost 3 parts (1p1n1w) 873 | -8/Materials | Discovered new exit (range 16) 880 | -8/Materials | Entered Factory 880 | -7/Factory | Evolved 2 slots: Power x1, Utility x1 923 | -7/Factory | Identified exit to DSF 924 | -7/Factory | Entered DSF 943 | -7/DSF | Additional patrols routed to DSF 957 | -7/DSF | Discovered new exit (range 15) 958 | -7/DSF | Build established: Sprinter 961 | -7/DSF | Entered Factory 961 | -6/Factory | Evolved 2 slots: Utility x2 992 | -6/Factory | Repaired Imp. Propulsion Shielding 1136 | -6/Factory | Fabricated VTOL Module? 1249 | -6/Factory | Identified exit to Factory 1275 | -6/Factory | Entered another Factory area 1275 | -5/Factory | Evolved 2 slots: Utility x2 1387 | -5/Factory | Spotted B-75 Beast 1503 | -5/Factory | Lost 3 parts (1p2u) 1575 | -5/Factory | Search patrols dispatched 1691 | -5/Factory | Core integrity fell below 50% 1727 | -5/Factory | Lost 14 parts (3p6n4u1w) 1886 | -5/Factory | Core integrity fell below 20% 1886 | -5/Factory | Released all parts (5) 1912 | -5/Factory | Destroyed by S-27 Virus with Autogun Last Messages --------------- 01875_ G-50 Soldier destroyed. 01876_ Mass Driver destroyed. 01877_ G-50 Soldier destroyed. 01882_ Destroyed Field Laser. 01882_ Arm. Medium Treads destroyed. 01884_ Plasma Sword destroyed. 01884_ Slammed into G-67 Veteran. 01884_ Critical hit (Burn: +50). 01885_ Acquired 79 matter. 01886_ Arm. Medium Treads destroyed. 01886_ Released Utility Shielding. 01886_ Released Adv. Heat Sink. 01886_ Released Utility Shielding. 01886_ Released Hacking Suite. 01886_ Released Utility Shielding. 01896_ S-27 Virus destroyed. 01900_ System corrupted: Energy discharge (-9). 01910_ S-27 Virus destroyed. 01911_ Hvy. Machine Gun destroyed. 01912_ Acquired 21 matter. Map ----- +----------------------------------------------------+ | ?????????????????????????????????????????????????? | | ?????????????????????????????????????????????????? | | ?????????????????????????????????????????????????? | | ?????????????????????????????????????????????????? | | ????????????????????????????????????????????????## | | ??????????????????????????????????????#?????????# | | ??????????????????????????????????????# ??????# | | ??????????????????????????????????????# ?????# | | ??????????????????????????????????????# ????# | | ??????????????????????????????????????# ???# | | ??????????????????????????????????????# ?# | | ??????????????????????????????????????# # | | ??????????????????????????????????????# ## | | ??????????????????????????????????????# | | ??????????????????????????????????????# | | ??????????????????????????????????????# | | ??????????????????????????????????????# | | ??????????????????????????????????????# """ """ | | ??????????????????????????????????????# """ """ | | ??????????????????????????????????????? """ """ | | ???????????????????????????????????????# | | ????????????????????????################ """ """ | | ????????????????????????# pp g # """ """ | | ???????????????########?#gsgggg ![#[ """ """ | | ???????????????# #?#s""""""" !!!/=* | | ???????????????# """#?#@""""""" !=#% """ """ | | ???????????????# """#?# """"""" # """ """ | | ???????????????# """#?# """"""" # """ """ | | ??????????###### #?################ | | ??????????#]] # ?????????????????# """ """ | | ??????????# ] #+##+#################### """ """ | | ??????????#]! + """ """ | | ??????????#= # | | ??????????# # """" ] ] """" %""" | | ??????????# + """" ]! """" """" ""T" | | ??????????# # """" ]] """" """" | | ??????????# # | | ??????????# # % ! | | ??????????###### ########+##################/##### | | ???????????????# #????? ????????# | | ???????????????# #??? ??????## | | ???????????????# #?# ?????## ! | | ??????# ######## #?# #?????# ! | | ??????# ^ #?# !] #?????# | | ??????# ^ #?# !] """ #?????# | | ??????# #?# """ #?????# | | ??? #?# """ #????## | | ? ##############?# ??#????# " | | ???????????????????# ????????## ! | | ??????????????????? ????????# ^ | +----------------------------------------------------+ Best States ------------- Heat Dissipation 59 Energy Generation 28 Energy Capacity 280 Matter Stores 300 Matter Capacity 300 Sight Range 16 Robot Scan Range 20 Terrain Scan Density 10 ECM Strength 2 Additional Mass Support 9 Armor Coverage 80 Propulsion Shielding 66 Utility Shielding 33 Evasion (%) 64 Targeting Accuracy 8 Recoil Reduction 2 Offensive Hacking 10 Item Schematics ----------------- Missile Launcher | -8/Materials | Scanalyzed VTOL Module | -8/Materials | Scanalyzed Xenon Bombardment Thruster | -6/Factory | Hacked Robot Schematics ------------------ None Fabricated ------------ VTOL Module | x2 | -6/Factory Alien Tech Used ----------------- None Achievements -------------- None Challenges ------------ None Game ------ Seed RestorationDirtyCarapace Manual? 0 Play Time 01:09:31 Cumulative 28.3 hours Start 2024.08.12 @ 17:35:15 End 2024.08.12 @ 22:43:38 Sessions 3 Manual Loads 0 Difficulty Rogue Special Mode None Game No. 42 Rogue 42 Adventurer 0 Explorer 0 Win Type - Total 0 Types 0/0/0/0/0/0/0/0/0 Lore% 18 Gallery% 35 Achievement% 26 Wizard Run 0 Options --------- Layout 0 ASCII 0 Keyboard 0 Movement Arrows Keybinds 0 Fullscreen 2 Font 24/Smallcaps Map View 76x50 Zoom Use 0% Tactical HUD 1 Map Filters NONE Filters NONE Steam 1 RUN: 64626466-bab9-4191-ae34-ee26b6161be6